fUSD/lending_fUSD_20260522
["ID","MTS","AMOUNT","RATE_DAILY","PERIOD"]
[422803860,1779424232000,-673.69381996,0.00013399,2]
[422803864,1779424232000,-673.69381996,0.00013399,2]
[422803863,1779424232000,-673.69381996,0.00013399,2]
[422803858,1779424232000,-673.69381996,0.00013399,2]
[422803835,1779424232000,-487.94083216,0.0001339,2]
[422803850,1779424232000,-673.69381996,0.00013399,2]
[422803836,1779424232000,-199.4875949,0.00013399,2]
[422803821,1779424232000,-11002.56894507,0.00013332,2]
[422803837,1779424232000,-500.0,0.00013399,2]
[422803812,1779424232000,-175.496385,0.0001323,2]
[422803810,1779424232000,-160.0,0.0001323,2]
[422803807,1779424232000,-350.0,0.0001313,2]
[422803808,1779424232000,-500.0,0.00013202,2]
[422803813,1779424232000,-253.749438,0.0001323,2]
[422803809,1779424232000,-226.372903,0.0001323,2]
[422803811,1779424232000,-167.748192,0.0001323,2]
[422803815,1779424232000,-33198.9797,0.00013289,2]
[422803814,1779424232000,-500.0,0.00013233,2]
[422803817,1779424232000,-11002.56894512,0.00013299,2]
[422803816,1779424232000,-327.098884,0.00013296,2]
[422803819,1779424232000,-2500.0,0.000133,2]
[422803818,1779424232000,-7581.49452973,0.000133,2]
[422803834,1779424232000,-151.0,0.00013389,2]
[422803820,1779424232000,-20514.92037751,0.000133,2]
[422803822,1779424232000,-20514.92037745,0.00013333,2]
[422803866,1779424232000,-673.69381996,0.00013399,2]
[422803824,1779424232000,-227.592664,0.00013362,2]
[422803823,1779424232000,-160.0,0.00013362,2]
[422803826,1779424232000,-11002.56894507,0.00013366,2]
[422803827,1779424232000,-20514.92037745,0.00013367,2]
[422803828,1779424232000,-8633.0,0.0001337,2]
[422803830,1779424232000,-78681.77859277,0.00013389,2]
[422803829,1779424232000,-166.69,0.00013388,2]
[422803832,1779424232000,-151.0,0.00013389,2]
[422803831,1779424232000,-151.0,0.00013389,2]
[422803838,1779424232000,-500.0,0.00013399,2]
[422803833,1779424232000,-151.0,0.00013389,2]
[422803825,1779424232000,-295.185328,0.00013362,2]
[422803869,1779424232000,-673.69381996,0.00013399,2]
[422803856,1779424232000,-673.69381996,0.00013399,2]
[422803871,1779424232000,-673.69381996,0.00013399,2]
[422803902,1779424232000,-656.85147447,0.00013399,2]
[422803904,1779424232000,-656.85147447,0.00013399,2]
[422803903,1779424232000,-656.85147447,0.00013399,2]
[422803906,1779424232000,-656.85147447,0.00013399,2]
[422803905,1779424232000,-656.85147447,0.00013399,2]
[422803910,1779424232000,-656.85147447,0.00013399,2]
[422803907,1779424232000,-656.85147447,0.00013399,2]
[422803908,1779424232000,-656.85147447,0.00013399,2]
[422803909,1779424232000,-656.85147447,0.00013399,2]
[422803912,1779424232000,-656.85147447,0.00013399,2]
[422803911,1779424232000,-656.85147447,0.00013399,2]
[422803913,1779424232000,-656.85147447,0.00013399,2]
[422803914,1779424232000,-656.85147447,0.00013399,2]
[422803915,1779424232000,-656.85147447,0.00013399,2]
[422803916,1779424232000,-656.85147447,0.00013399,2]
[422803917,1779424232000,-656.85147447,0.00013399,2]
[422803919,1779424232000,-656.85147447,0.00013399,2]
[422803920,1779424232000,-656.85147447,0.00013399,2]
[422803921,1779424232000,-656.85147447,0.00013399,2]
[422803918,1779424232000,-656.85147447,0.00013399,2]
[422803868,1779424232000,-673.69381996,0.00013399,2]
[422803922,1779424232000,-656.85147447,0.00013399,2]
[422803924,1779424232000,-656.85147447,0.00013399,2]
[422803925,1779424232000,-656.85147447,0.00013399,2]
[422803926,1779424232000,-656.85147447,0.00013399,2]
[422803927,1779424232000,-656.85147447,0.00013399,2]
[422803928,1779424232000,-656.85147447,0.00013399,2]
[422803901,1779424232000,-656.85147447,0.00013399,2]
[422803899,1779424232000,-656.85147447,0.00013399,2]
[422803923,1779424232000,-656.85147447,0.00013399,2]
[422803897,1779424232000,-238.3195502,0.00013399,2]
[422803896,1779424232000,-673.69381996,0.00013399,2]
[422803870,1779424232000,-673.69381996,0.00013399,2]
[422803867,1779424232000,-673.69381996,0.00013399,2]
[422803876,1779424232000,-673.69381996,0.00013399,2]
[422803872,1779424232000,-673.69381996,0.00013399,2]
[422803875,1779424232000,-673.69381996,0.00013399,2]
[422803873,1779424232000,-673.69381996,0.00013399,2]
[422803874,1779424232000,-673.69381996,0.00013399,2]
[422803878,1779424232000,-673.69381996,0.00013399,2]
[422803880,1779424232000,-673.69381996,0.00013399,2]
[422803881,1779424232000,-673.69381996,0.00013399,2]
[422803882,1779424232000,-673.69381996,0.00013399,2]
[422803879,1779424232000,-673.69381996,0.00013399,2]
[422803889,1779424232000,-673.69381996,0.00013399,2]
[422803877,1779424232000,-673.69381996,0.00013399,2]
[422803884,1779424232000,-673.69381996,0.00013399,2]
[422803900,1779424232000,-656.85147447,0.00013399,2]
[422803888,1779424232000,-673.69381996,0.00013399,2]
[422803895,1779424232000,-673.69381996,0.00013399,2]
[422803894,1779424232000,-673.69381996,0.00013399,2]
[422803891,1779424232000,-673.69381996,0.00013399,2]
[422803893,1779424232000,-673.69381996,0.00013399,2]
[422803898,1779424232000,-656.85147447,0.00013399,2]
[422803890,1779424232000,-673.69381996,0.00013399,2]
[422803887,1779424232000,-673.69381996,0.00013399,2]
[422803885,1779424232000,-673.69381996,0.00013399,2]
[422803883,1779424232000,-673.69381996,0.00013399,2]
[422803886,1779424232000,-673.69381996,0.00013399,2]
[422803892,1779424232000,-673.69381996,0.00013399,2]
[422803940,1779424233000,-357.88151182,0.000134,2]
[422803936,1779424233000,-1384.68337832,0.000134,2]
[422803932,1779424233000,-202347.65340525,0.000134,2]
[422803935,1779424233000,-1254.41808677,0.000134,2]
[422803934,1779424233000,-81008.33475796,0.000134,2]
[422803933,1779424233000,-71876.80464784,0.000134,2]
[422803931,1779424233000,-19380.91061321,0.000134,2]
[422803929,1779424233000,-656.85147447,0.00013399,2]
[422803937,1779424233000,-11724.99433307,0.000134,2]
[422803930,1779424233000,-11002.56894507,0.00013399,2]
[422803941,1779424233000,-174.170989,0.00013389,2]
[422803938,1779424233000,-351.02307539,0.000134,2]
[422803943,1779424233000,-3498.48102678,0.000134,2]
[422803942,1779424233000,-411.758489,0.000134,2]
[422803944,1779424233000,-5880.0,0.000134,2]
[422803945,1779424233000,-315.42809693,0.000134,2]
[422803947,1779424233000,-544.02,0.000134,2]
[422803950,1779424233000,-468.75595281,0.000134,2]
[422803946,1779424233000,-1663.6855344,0.000134,2]
[422803948,1779424233000,-1292.2457146,0.000134,2]
[422803949,1779424233000,-5093.03852259,0.000134,2]
[422803951,1779424233000,-2599.15164586,0.000134,2]
[422803939,1779424233000,-491.0360497,0.000134,2]
[422803955,1779424237000,-174.170989,0.00013389,2]
[422803956,1779424237000,-174.170989,0.00013389,2]
[422803957,1779424237000,-3794.91708105,0.000134,2]
[422803958,1779424237000,-670.08996231,0.000134,2]
[422803959,1779424237000,-174.170989,0.00013389,2]
[422803960,1779424237000,-25837.21632018,0.000134,2]
[422803962,1779424237000,-3488.88879062,0.000134,2]
[422803963,1779424237000,-48829.746,0.000134,2]
[422803964,1779424237000,-8355.461751,0.000134,2]
[422803965,1779424237000,-36008.590824,0.000134,2]
[422803966,1779424237000,-22487.89984305,0.000134,2]
[422803961,1779424237000,-754.58458693,0.000134,2]
[422803968,1779424238000,-2135.74992329,0.000134,2]
[422803967,1779424238000,-516.70824417,0.000134,2]
[422804025,1779424239000,-762.02669193,0.000134,2]
[422804100,1779424240000,-151.0,0.00013597,2]
[422804107,1779424240000,-366.07666003,0.000136,2]
[422804103,1779424240000,-11002.56894507,0.000136,2]
[422804106,1779424240000,-387.67738749,0.000136,2]
[422804105,1779424240000,-1068.32136773,0.000136,2]
[422804104,1779424240000,-16993.6406062,0.000136,2]
[422804108,1779424240000,-332.11298935,0.000136,2]
[422804102,1779424240000,-2000.0,0.000136,2]
[422804101,1779424240000,-242.41329842,0.000136,2]
[422804099,1779424240000,-20514.92037745,0.00013567,2]
[422804095,1779424240000,-184.87836,0.0001356,2]
[422804045,1779424240000,-151.0,0.00013433,2]
[422804046,1779424240000,-240.545163,0.00013433,2]
[422804047,1779424240000,-174.170989,0.00013433,2]
[422804043,1779424240000,-151.0,0.00013433,2]
[422804051,1779424240000,-174.170989,0.00013433,2]
[422804050,1779424240000,-174.170989,0.00013433,2]
[422804044,1779424240000,-151.0,0.00013433,2]
[422804048,1779424240000,-174.170989,0.00013433,2]
[422804052,1779424240000,-20514.92037745,0.00013433,2]
[422804055,1779424240000,-20514.92037745,0.00013467,2]
[422804056,1779424240000,-500.0,0.00013476,2]
[422804063,1779424240000,-1500000.0,0.000135,2]
[422804058,1779424240000,-487.94083216,0.0001349,2]
[422804057,1779424240000,-171.13,0.00013484,2]
[422804053,1779424240000,-1314.804,0.00013436,2]
[422804041,1779424240000,-291.80882,0.00013426,2]
[422804040,1779424240000,-174.170989,0.000134,2]
[422804042,1779424240000,-11002.56894507,0.00013433,2]
[422804092,1779424240000,-174.170989,0.00013557,2]
[422804026,1779424240000,-26807.13682928,0.000134,2]
[422804038,1779424240000,-174.170989,0.000134,2]
[422804035,1779424240000,-293.8028058,0.000134,2]
[422804027,1779424240000,-1907606.67830989,0.000134,2]
[422804029,1779424240000,-20514.92037745,0.000134,2]
[422804034,1779424240000,-151.0,0.000134,2]
[422804030,1779424240000,-2766.88528274,0.000134,2]
[422804028,1779424240000,-69776.5091,0.000134,2]
[422804033,1779424240000,-151.0,0.000134,2]
[422804037,1779424240000,-174.170989,0.000134,2]
[422804031,1779424240000,-176.24789568,0.000134,2]
[422804036,1779424240000,-151.0,0.000134,2]
[422804032,1779424240000,-151.0,0.000134,2]
[422804039,1779424240000,-174.170989,0.000134,2]
[422804062,1779424240000,-11002.56894507,0.000135,2]
[422804059,1779424240000,-172.473042,0.00013493,2]
[422804054,1779424240000,-11002.56894507,0.00013466,2]
[422804060,1779424240000,-151.0,0.00013497,2]
[422804082,1779424240000,-174.170989,0.000135,2]
[422804081,1779424240000,-174.170989,0.000135,2]
[422804079,1779424240000,-174.170989,0.000135,2]
[422804084,1779424240000,-11002.56894507,0.00013533,2]
[422804061,1779424240000,-300.0,0.00013499,2]
[422804087,1779424240000,-62042.3456388,0.00013557,2]
[422804089,1779424240000,-151.0,0.00013557,2]
[422804090,1779424240000,-151.0,0.00013557,2]
[422804088,1779424240000,-151.0,0.00013557,2]
[422804097,1779424240000,-171.345055,0.0001356,2]
[422804096,1779424240000,-184.87837,0.0001356,2]
[422804098,1779424240000,-11002.56894507,0.00013567,2]
[422804093,1779424240000,-174.170989,0.00013557,2]
[422804094,1779424240000,-174.170988,0.00013557,2]
[422804091,1779424240000,-174.170989,0.00013557,2]
[422804078,1779424240000,-151.0,0.000135,2]
[422804086,1779424240000,-20331.5781369,0.00013557,2]
[422804083,1779424240000,-7581.4945297,0.00013529,2]
[422804080,1779424240000,-174.170989,0.000135,2]
[422804064,1779424240000,-732.814726,0.000135,2]
[422804085,1779424240000,-20514.92037745,0.00013533,2]
[422804067,1779424240000,-732.814726,0.000135,2]
[422804066,1779424240000,-732.814726,0.000135,2]
[422804065,1779424240000,-732.814726,0.000135,2]
[422804070,1779424240000,-708.63664,0.000135,2]
[422804075,1779424240000,-182.0,0.000135,2]
[422804068,1779424240000,-151.0,0.000135,2]
[422804072,1779424240000,-708.63664,0.000135,2]
[422804073,1779424240000,-708.63664,0.000135,2]
[422804076,1779424240000,-151.0,0.000135,2]
[422804074,1779424240000,-20514.92037745,0.000135,2]
[422804071,1779424240000,-708.63664,0.000135,2]
[422804077,1779424240000,-151.0,0.000135,2]
[422804069,1779424240000,-151.0,0.000135,2]
[422804117,1779424242000,-883.15095705,0.000136,2]
[422804119,1779424242000,-483.9404096,0.000136,2]
[422804123,1779424242000,-151.0,0.00013697,2]
[422804122,1779424242000,-1665.4607435,0.00013695,2]
[422804125,1779424242000,-500.0,0.00013698,2]
[422804121,1779424242000,-3520.7786873,0.00013695,2]
[422804124,1779424242000,-151.0,0.00013697,2]
[422804120,1779424242000,-213.62052202,0.00013625,2]
[422804131,1779424243000,-500.0,0.00013698,2]
[422804128,1779424243000,-312.08235769,0.00013698,2]
[422804127,1779424243000,-453.92477929,0.00013698,2]
[422804126,1779424243000,-500.0,0.00013698,2]
[422804129,1779424243000,-500.0,0.00013698,2]
[422804132,1779424243000,-500.0,0.00013698,2]
[422804130,1779424243000,-500.0,0.00013698,2]
[422804133,1779424243000,-385.41649042,0.00013698,2]
[422804134,1779424243000,-14.37893081,0.00013698,2]
[422804136,1779424243000,-4.53466818,0.00013698,2]
[422804135,1779424243000,-95.66991059,0.00013698,2]
[422804137,1779424243000,-500.0,0.00013698,2]
[422804138,1779424243000,-216.49051247,0.00013698,2]
[422804142,1779424245000,-500.0,0.00013698,2]
[422804140,1779424245000,-265.59999999,0.00013698,2]
[422804141,1779424245000,-17.90948754,0.00013698,2]
[422804144,1779424245000,-113.46051246,0.00013698,2]
[422804149,1779424245000,-500.0,0.00013698,2]
[422804145,1779424245000,-386.53948754,0.00013698,2]
[422804147,1779424245000,-500.0,0.00013698,2]
[422804148,1779424245000,-500.0,0.00013698,2]
[422804146,1779424245000,-500.0,0.00013698,2]
[422804143,1779424245000,-500.0,0.00013698,2]
[422804151,1779424245000,-168.26,0.00013699,2]
[422804152,1779424245000,-151.0,0.00013699,2]
[422804154,1779424245000,-1038.453509,0.00013699,2]
[422804153,1779424245000,-151.0,0.00013699,2]
[422804155,1779424245000,-1038.453509,0.00013699,2]
[422804156,1779424245000,-1038.453509,0.00013699,2]
[422804158,1779424245000,-433.258736,0.00013699,2]
[422804160,1779424245000,-433.258736,0.00013699,2]
[422804157,1779424245000,-1038.453509,0.00013699,2]
[422804159,1779424245000,-433.258736,0.00013699,2]
[422804150,1779424245000,-603.40015059,0.00013698,2]
[422804202,1779424246000,-500.0,0.00013699,2]
[422804200,1779424246000,-500.0,0.00013699,2]
[422804201,1779424246000,-500.0,0.00013699,2]
[422804194,1779424246000,-500.0,0.00013699,2]
[422804197,1779424246000,-500.0,0.00013699,2]
[422804195,1779424246000,-500.0,0.00013699,2]
[422804196,1779424246000,-500.0,0.00013699,2]
[422804190,1779424246000,-500.0,0.00013699,2]
[422804192,1779424246000,-500.0,0.00013699,2]
[422804193,1779424246000,-500.0,0.00013699,2]
[422804203,1779424246000,-500.0,0.00013699,2]
[422804198,1779424246000,-500.0,0.00013699,2]
[422804208,1779424246000,-500.0,0.00013699,2]
[422804220,1779424246000,-713.7,0.00013699,2]
[422804206,1779424246000,-500.0,0.00013699,2]
[422804207,1779424246000,-500.0,0.00013699,2]
[422804204,1779424246000,-500.0,0.00013699,2]
[422804209,1779424246000,-500.0,0.00013699,2]
[422804210,1779424246000,-500.0,0.00013699,2]
[422804211,1779424246000,-500.0,0.00013699,2]
[422804212,1779424246000,-500.0,0.00013699,2]
[422804215,1779424246000,-713.7,0.00013699,2]
[422804219,1779424246000,-713.7,0.00013699,2]
[422804216,1779424246000,-713.7,0.00013699,2]
[422804221,1779424246000,-713.7,0.00013699,2]
[422804191,1779424246000,-500.0,0.00013699,2]
[422804205,1779424246000,-500.0,0.00013699,2]
[422804185,1779424246000,-500.0,0.00013699,2]
[422804171,1779424246000,-433.258736,0.00013699,2]
[422804189,1779424246000,-500.0,0.00013699,2]
[422804164,1779424246000,-433.258736,0.00013699,2]
[422804162,1779424246000,-433.258736,0.00013699,2]
[422804161,1779424246000,-433.258736,0.00013699,2]
[422804163,1779424246000,-433.258736,0.00013699,2]
[422804166,1779424246000,-433.258736,0.00013699,2]
[422804176,1779424246000,-433.258736,0.00013699,2]
[422804175,1779424246000,-433.258736,0.00013699,2]
[422804165,1779424246000,-433.258736,0.00013699,2]
[422804177,1779424246000,-433.258746,0.00013699,2]
[422804167,1779424246000,-433.258736,0.00013699,2]
[422804169,1779424246000,-433.258736,0.00013699,2]
[422804168,1779424246000,-433.258736,0.00013699,2]
[422804186,1779424246000,-500.0,0.00013699,2]
[422804173,1779424246000,-433.258736,0.00013699,2]
[422804174,1779424246000,-433.258736,0.00013699,2]
[422804214,1779424246000,-713.7,0.00013699,2]
[422804172,1779424246000,-433.258736,0.00013699,2]
[422804178,1779424246000,-300.0,0.00013699,2]
[422804179,1779424246000,-300.0,0.00013699,2]
[422804188,1779424246000,-500.0,0.00013699,2]
[422804183,1779424246000,-500.0,0.00013699,2]
[422804182,1779424246000,-500.0,0.00013699,2]
[422804181,1779424246000,-505.51573197,0.00013699,2]
[422804180,1779424246000,-191.03090162,0.00013699,2]
[422804187,1779424246000,-500.0,0.00013699,2]
[422804184,1779424246000,-500.0,0.00013699,2]
[422804170,1779424246000,-433.258736,0.00013699,2]
[422804213,1779424246000,-500.0,0.00013699,2]
[422804199,1779424246000,-500.0,0.00013699,2]
[422804222,1779424246000,-713.7,0.00013699,2]
[422804261,1779424246000,-500.0,0.00013699,2]
[422804253,1779424246000,-732.814726,0.00013699,2]
[422804252,1779424246000,-1038.453509,0.00013699,2]
[422804250,1779424246000,-732.814726,0.00013699,2]
[422804254,1779424246000,-151.0,0.00013699,2]
[422804263,1779424246000,-500.0,0.00013699,2]
[422804273,1779424246000,-500.0,0.00013699,2]
[422804274,1779424246000,-500.0,0.00013699,2]
[422804275,1779424246000,-500.0,0.00013699,2]
[422804265,1779424246000,-500.0,0.00013699,2]
[422804262,1779424246000,-510.68342527,0.00013699,2]
[422804269,1779424246000,-500.0,0.00013699,2]
[422804256,1779424246000,-708.63664,0.00013699,2]
[422804270,1779424246000,-500.0,0.00013699,2]
[422804266,1779424246000,-500.0,0.00013699,2]
[422804264,1779424246000,-500.0,0.00013699,2]
[422804272,1779424246000,-500.0,0.00013699,2]
[422804271,1779424246000,-500.0,0.00013699,2]
[422804268,1779424246000,-500.0,0.00013699,2]
[422804277,1779424246000,-500.0,0.00013699,2]
[422804276,1779424246000,-500.0,0.00013699,2]
[422804279,1779424246000,-500.0,0.00013699,2]
[422804278,1779424246000,-500.0,0.00013699,2]
[422804280,1779424246000,-500.0,0.00013699,2]
[422804281,1779424246000,-500.0,0.00013699,2]
[422804217,1779424246000,-713.7,0.00013699,2]
[422804267,1779424246000,-500.0,0.00013699,2]
[422804259,1779424246000,-708.63664,0.00013699,2]
[422804258,1779424246000,-708.63664,0.00013699,2]
[422804236,1779424246000,-4055.37,0.00013699,2]
[422804223,1779424246000,-713.7,0.00013699,2]
[422804231,1779424246000,-4055.37,0.00013699,2]
[422804229,1779424246000,-4055.37,0.00013699,2]
[422804227,1779424246000,-4055.37,0.00013699,2]
[422804226,1779424246000,-713.7,0.00013699,2]
[422804225,1779424246000,-713.7,0.00013699,2]
[422804228,1779424246000,-4055.37,0.00013699,2]
[422804230,1779424246000,-4055.37,0.00013699,2]
[422804233,1779424246000,-4055.37,0.00013699,2]
[422804232,1779424246000,-4055.37,0.00013699,2]
[422804235,1779424246000,-4055.37,0.00013699,2]
[422804248,1779424246000,-1038.453509,0.00013699,2]
[422804224,1779424246000,-713.7,0.00013699,2]
[422804234,1779424246000,-4055.37,0.00013699,2]
[422804244,1779424246000,-1038.453509,0.00013699,2]
[422804238,1779424246000,-4055.37,0.00013699,2]
[422804239,1779424246000,-4055.37,0.00013699,2]
[422804237,1779424246000,-4055.37,0.00013699,2]
[422804282,1779424246000,-500.0,0.00013699,2]
[422804240,1779424246000,-151.0,0.00013699,2]
[422804241,1779424246000,-161.273991,0.00013699,2]
[422804243,1779424246000,-732.814726,0.00013699,2]
[422804242,1779424246000,-1038.453509,0.00013699,2]
[422804260,1779424246000,-500.0,0.00013699,2]
[422804255,1779424246000,-151.0,0.00013699,2]
[422804257,1779424246000,-708.63664,0.00013699,2]
[422804246,1779424246000,-732.814726,0.00013699,2]
[422804218,1779424246000,-713.7,0.00013699,2]
[422804284,1779424247000,-22566.56632696,0.000137,2]
[422804286,1779424247000,-160.63892829,0.000137,2]
[422804285,1779424247000,-2172.213436,0.000137,2]
[422804288,1779424247000,-666.0,0.000137,2]
[422804287,1779424247000,-24907.22773763,0.000137,2]
[422804289,1779424247000,-658.03402278,0.000137,2]
[422804283,1779424247000,-5348.46961474,0.000137,2]
[422804291,1779424328000,214.0,7.945e-05,2]
[422804295,1779424451000,158.52,8.932e-05,2]
[422804294,1779424451000,158.52,8.143e-05,2]
[422804293,1779424451000,158.52,7.354e-05,2]
[422804292,1779424451000,158.52,6.566e-05,2]
[422804296,1779424452000,158.52,9.72e-05,2]
[422804299,1779425130000,-253.85994364,0.00010408,2]
[422804298,1779425130000,-250.0,0.00010404,2]
[422804300,1779425161000,171.13,8.91e-05,2]
[422804301,1779425240000,158.05,5.611e-05,2]
[422804304,1779425241000,158.05,7.921e-05,2]
[422804303,1779425241000,158.05,7.151e-05,2]
[422804302,1779425241000,158.05,6.381e-05,2]
[422804305,1779425241000,158.05,8.692e-05,2]
[422804306,1779425242000,158.05,9.462e-05,2]
[422804309,1779425366000,-574.85005636,0.00010408,2]
[422804307,1779425366000,-151.0,0.000101,2]
[422804311,1779425366000,-232.0849,0.00010599,2]
[422804308,1779425366000,-158.05,0.00010232,2]
[422804313,1779425366000,-150.0,0.00010719,2]
[422804310,1779425366000,-150.0,0.00010511,2]
[422804315,1779425366000,-500.0,0.00010899,2]
[422804314,1779425366000,-150.0,0.00010823,2]
[422804316,1779425366000,-344.18986782,0.000109,2]
[422804318,1779425366000,-162.55052264,0.000109,2]
[422804317,1779425366000,-166.82902197,0.000109,2]
[422804312,1779425366000,-150.0,0.00010615,2]
[422804319,1779425367000,-500.0,0.000109,2]
[422804320,1779425367000,-500.0,0.000109,2]
[422804321,1779425367000,-500.0,0.000109,2]
[422804322,1779425367000,-500.0,0.000109,2]
[422804323,1779425367000,-500.0,0.000109,2]
[422804325,1779425367000,-500.0,0.000109,2]
[422804324,1779425367000,-500.0,0.000109,2]
[422804326,1779425367000,-500.0,0.000109,2]
[422804328,1779425367000,-500.0,0.000109,2]
[422804329,1779425367000,-500.0,0.000109,2]
[422804331,1779425367000,-500.0,0.000109,2]
[422804330,1779425367000,-500.0,0.000109,2]
[422804332,1779425367000,-500.0,0.000109,2]
[422804333,1779425367000,-110.44563121,0.000109,2]
[422804327,1779425367000,-500.0,0.000109,2]
[422804342,1779425368000,-500.0,0.000109,2]
[422804339,1779425368000,-500.0,0.000109,2]
[422804336,1779425368000,-500.0,0.000109,2]
[422804334,1779425368000,-389.55436879,0.000109,2]
[422804337,1779425368000,-500.0,0.000109,2]
[422804335,1779425368000,-350.0,0.000109,2]
[422804341,1779425368000,-500.0,0.000109,2]
[422804338,1779425368000,-500.0,0.000109,2]
[422804340,1779425368000,-500.0,0.000109,2]
[422804351,1779425368000,-500.0,0.000109,2]
[422804345,1779425368000,-500.0,0.000109,2]
[422804352,1779425368000,-500.0,0.000109,2]
[422804350,1779425368000,-500.0,0.000109,2]
[422804349,1779425368000,-500.0,0.000109,2]
[422804343,1779425368000,-500.0,0.000109,2]
[422804347,1779425368000,-500.0,0.000109,2]
[422804344,1779425368000,-500.0,0.000109,2]
[422804346,1779425368000,-500.0,0.000109,2]
[422804348,1779425368000,-500.0,0.000109,2]
[422804363,1779425369000,-529.92611999,0.000109,2]
[422804362,1779425369000,-500.0,0.000109,2]
[422804361,1779425369000,-500.0,0.000109,2]
[422804359,1779425369000,-500.0,0.000109,2]
[422804360,1779425369000,-500.0,0.000109,2]
[422804358,1779425369000,-500.0,0.000109,2]
[422804356,1779425369000,-500.0,0.000109,2]
[422804357,1779425369000,-500.0,0.000109,2]
[422804355,1779425369000,-239.55436879,0.000109,2]
[422804354,1779425369000,-260.44563121,0.000109,2]
[422804353,1779425369000,-500.0,0.000109,2]
[422804368,1779425369000,-500.0,0.000109,2]
[422804366,1779425369000,-500.0,0.000109,2]
[422804364,1779425369000,-500.0,0.000109,2]
[422804367,1779425369000,-500.0,0.000109,2]
[422804381,1779425369000,-7980.51951121,0.00010901,2]
[422804369,1779425369000,-500.0,0.000109,2]
[422804377,1779425369000,-500.0,0.000109,2]
[422804379,1779425369000,-500.0,0.000109,2]
[422804378,1779425369000,-500.0,0.000109,2]
[422804376,1779425369000,-369.48048879,0.000109,2]
[422804380,1779425369000,-150.0,0.000109,2]
[422804374,1779425369000,-600.00000001,0.000109,2]
[422804375,1779425369000,-130.51951121,0.000109,2]
[422804370,1779425369000,-500.0,0.000109,2]
[422804365,1779425369000,-500.0,0.000109,2]
[422804371,1779425369000,-500.0,0.000109,2]
[422804372,1779425369000,-500.0,0.000109,2]
[422804373,1779425369000,-500.0,0.000109,2]
[422804383,1779425370000,-10000.0,0.00010901,2]
[422804382,1779425370000,-10000.0,0.00010901,2]
[422804386,1779425371000,-10000.0,0.00010901,2]
[422804385,1779425371000,-9790.62,0.00010901,2]
[422804384,1779425371000,-209.38,0.00010312,2]
[422804387,1779425371000,-10000.0,0.00010901,2]
[422804388,1779425372000,-10000.0,0.00010901,2]
[422804390,1779425373000,-10000.0,0.00010901,2]
[422804389,1779425373000,-10000.0,0.00010901,2]
[422804391,1779425374000,-10000.0,0.00010901,2]
[422804392,1779425374000,-10000.0,0.00010901,2]
[422804393,1779425375000,-10000.0,0.00010901,2]
[422804395,1779425376000,-600.0,0.000109,2]
[422804394,1779425376000,-10000.0,0.00010901,2]
[422804396,1779425376000,-9400.0,0.00010901,2]
[422804398,1779425377000,-10000.0,0.00010901,2]
[422804397,1779425377000,-10000.0,0.00010901,2]
[422804399,1779425378000,-10000.0,0.00010901,2]
[422804401,1779425379000,-10000.0,0.00010901,2]
[422804400,1779425379000,-10000.0,0.00010901,2]
[422804402,1779425380000,-10000.0,0.00010901,2]
[422804403,1779425381000,-10000.0,0.00010901,2]